[Event "FIDE Grand Swiss 2023"]
[Site "Villa Marina, Douglas, Isle of Man"]
[Date "2023.11.01"]
[Round "7.32"]
[White "Saric, Ivan"]
[Black "Mareco, Sandro"]
[Result "1-0"]
[WhiteElo "2647"]
[BlackElo "2606"]
[EventDate "2023.10.25"]
[ECO "C78"]
[PlyCount "57"]
[BlackFideId "112275"]
[TimeControl "40/100 + 20/50 + 15 + 30s/move"]
[WhiteFideId "14508150"]

1.e4 {[%clk 01:40:58][%emt 00:00:01]} 1...e5 {[%clk 01:40:55][%emt 00:00:05]} 
2.Nf3 {[%clk 01:41:25][%emt 00:00:03]} 2...Nc6 {[%clk 01:41:21][%emt 00:00:05]} 
3.Bb5 {[%clk 01:41:32][%emt 00:00:22]} 3...a6 {[%clk 01:41:46][%emt 00:00:06]} 
4.Ba4 {[%clk 01:42:00][%emt 00:00:03]} 4...Nf6 {[%clk 01:42:07][%emt 00:00:08]} 
5.O-O {[%clk 01:42:24][%emt 00:00:05]} 5...b5 {[%clk 01:42:13][%emt 00:00:25]} 
6.Bb3 {[%clk 01:42:49][%emt 00:00:04]} 6...Bb7 {[%clk 01:42:41][%emt 00:00:03]} 
7.Nc3 {[%clk 01:33:48][%emt 00:09:31]} 7...Bc5 {[%clk 01:42:37][%emt 00:00:34]} 
8.Nd5 {[%clk 01:33:51][%emt 00:00:27]} 8...O-O {[%clk 01:23:07][%emt 00:20:00]} 
9.c3 {[%clk 01:33:47][%emt 00:00:34]} 9...Na5 {[%clk 00:55:08][%emt 00:28:29]} 
10.Bc2 {[%clk 01:28:07][%emt 00:06:10]} 10...Be7 {[%clk 00:53:33][%emt
00:02:04]} 11.d4 {[%clk 01:22:46][%emt 00:05:51]} 11...d6 {[%clk 00:53:46][%emt
00:00:18]} 12.Re1 {[%clk 01:17:29][%emt 00:05:47]} 12...Nc4 {[%clk
00:35:19][%emt 00:18:57]} 13.b3 {[%clk 01:16:10][%emt 00:01:48]} 13...Nb6 
{[%clk 00:35:34][%emt 00:00:16]} 14.c4 {[%clk 01:03:57][%emt 00:12:43]} 
14...bxc4 {[%clk 00:31:32][%emt 00:04:32]} 15.bxc4 {[%clk 01:03:48][%emt
00:00:39]} 15...Nxc4 {[%clk 00:29:18][%emt 00:02:44]} 16.Nxe7+ {[%clk
01:01:16][%emt 00:03:01]} 16...Qxe7 {[%clk 00:29:43][%emt 00:00:05]} 17.Qd3 
{[%clk 01:01:41][%emt 00:00:05]} 17...Nb6 {[%clk 00:29:04][%emt 00:01:10]} 
18.dxe5 {[%clk 01:01:37][%emt 00:00:34]} 18...dxe5 {[%clk 00:29:30][%emt
00:00:04]} 19.Ba3 {[%clk 01:01:48][%emt 00:00:18]} 19...c5 {[%clk 00:29:37][%emt
00:00:24]} 20.Rab1 {[%clk 01:01:52][%emt 00:00:26]} 20...Nfd7 {[%clk
00:21:58][%emt 00:08:09]} 21.Qc3 {[%clk 00:50:03][%emt 00:12:19]} 21...Rab8 
{[%clk 00:16:03][%emt 00:06:24]} 22.Bb2 {[%clk 00:44:45][%emt 00:05:49]} 
22...Rfe8 {[%clk 00:16:03][%emt 00:00:30]} 23.Nxe5 {[%clk 00:44:22][%emt
00:00:53]} 23...Nxe5 {[%clk 00:08:47][%emt 00:07:46]} 24.Qxe5 {[%clk
00:44:39][%emt 00:00:13]} 24...Qf8 {[%clk 00:09:08][%emt 00:00:09]} 25.Qg3 
{[%clk 00:41:04][%emt 00:04:04]} 25...Nd7 {[%clk 00:04:23][%emt 00:05:16]} 
26.Ba4 {[%clk 00:38:59][%emt 00:02:35]} 26...Rbd8 {[%clk 00:03:16][%emt
00:01:37]} 27.Bxg7 {[%clk 00:35:01][%emt 00:04:28]} 27...Qxg7 {[%clk
00:03:40][%emt 00:00:06]} 28.Rxb7 {[%clk 00:35:25][%emt 00:00:06]} 28...Re7 
{[%clk 00:03:46][%emt 00:00:24]} 29.Rd1 {[%clk 00:35:22][%emt 00:00:32]} 1-0

[Event "FIDE Grand Swiss 2023"]
[Site "Villa Marina, Douglas, Isle of Man"]
[Date "2023.11.01"]
[Round "7.33"]
[White "Huschenbeth, Niclas"]
[Black "Svane, Rasmus"]
[Result "1-0"]
[WhiteElo "2605"]
[BlackElo "2646"]
[EventDate "2023.10.25"]
[ECO "C42"]
[PlyCount "169"]
[BlackFideId "4657101"]
[TimeControl "40/100 + 20/50 + 15 + 30s/move"]
[WhiteFideId "24604747"]

1.e4 {[%clk 01:40:56][%emt 00:00:02]} 1...e5 {[%clk 01:40:40][%emt 00:00:21]} 
2.Nf3 {[%clk 01:41:20][%emt 00:00:06]} 2...Nf6 {[%clk 01:40:59][%emt 00:00:11]} 
3.Nxe5 {[%clk 01:41:31][%emt 00:00:19]} 3...d6 {[%clk 01:41:08][%emt 00:00:21]} 
4.Nf3 {[%clk 01:41:55][%emt 00:00:06]} 4...Nxe4 {[%clk 01:41:31][%emt 00:00:07]} 
5.d4 {[%clk 01:40:34][%emt 00:01:51]} 5...d5 {[%clk 01:41:40][%emt 00:00:22]} 
6.Bd3 {[%clk 01:40:50][%emt 00:00:13]} 6...Nc6 {[%clk 01:41:56][%emt 00:00:14]} 
7.O-O {[%clk 01:36:48][%emt 00:04:32]} 7...Be7 {[%clk 01:42:01][%emt 00:00:25]} 
8.Nbd2 {[%clk 01:35:58][%emt 00:01:19]} 8...Bf5 {[%clk 01:41:25][%emt 00:01:07]} 
9.Re1 {[%clk 01:35:34][%emt 00:00:54]} 9...Nxd2 {[%clk 01:41:42][%emt 00:00:13]} 
10.Qxd2 {[%clk 01:34:25][%emt 00:01:39]} 10...Bg6 {[%clk 01:42:06][%emt
00:00:06]} 11.Bxg6 {[%clk 01:16:55][%emt 00:18:01]} 11...hxg6 {[%clk
01:42:21][%emt 00:00:14]} 12.Qd3 {[%clk 01:17:14][%emt 00:00:11]} 12...Qd7 
{[%clk 01:41:40][%emt 00:01:11]} 13.Bg5 {[%clk 01:15:12][%emt 00:02:32]} 
13...O-O {[%clk 01:42:01][%emt 00:00:08]} 14.Bxe7 {[%clk 01:13:56][%emt
00:01:47]} 14...Nxe7 {[%clk 01:42:28][%emt 00:00:03]} 15.Ne5 {[%clk
01:13:00][%emt 00:01:25]} 15...Qd6 {[%clk 01:42:26][%emt 00:00:33]} 16.Re2 
{[%clk 01:04:19][%emt 00:09:11]} 16...Rae8 {[%clk 01:19:30][%emt 00:23:25]} 
17.Rae1 {[%clk 01:03:05][%emt 00:01:44]} 17...Nc8 {[%clk 01:07:47][%emt
00:12:14]} 18.Nf3 {[%clk 00:36:43][%emt 00:26:52]} 18...Rxe2 {[%clk
00:56:40][%emt 00:11:36]} 19.Rxe2 {[%clk 00:37:04][%emt 00:00:09]} 19...Qd7 
{[%clk 00:49:58] [%emt 00:07:13]} 20.Ne5 {[%clk 00:35:10][%emt 00:02:24]} 
20...Qe6 {[%clk 00:33:39][%emt 00:16:48]} 21.Nf3 {[%clk 00:27:57][%emt
00:07:44]} 21...Qd7 {[%clk 00:49:58][%emt 00:07:13]} 22.Re5 {[%clk
00:16:45][%emt 00:11:42]} 22...Re8 {[%clk 00:29:11][%emt 00:04:39]} 23.Qb3 
{[%clk 00:13:56][%emt 00:03:19]} 23...Nb6 {[%clk 00:27:48][%emt 00:01:54]} 
24.Qe3 {[%clk 00:14:11][%emt 00:00:14]} 24...Rxe5 {[%clk 00:22:04][%emt
00:06:15]} 25.dxe5 {[%clk 00:13:34][%emt 00:01:06]} 25...Qe7 {[%clk
00:20:57][%emt 00:01:37]} 26.b3 {[%clk 00:13:14][%emt 00:00:50]} 26...c5 {[%clk
00:20:29][%emt 00:00:58]} 27.e6 {[%clk 00:11:02][%emt 00:02:42]} 27...fxe6 
{[%clk 00:16:49][%emt 00:04:10]} 28.Qe5 {[%clk 00:09:29][%emt 00:02:02]} 
28...Nd7 {[%clk 00:14:04][%emt 00:03:15]} 29.Qc7 {[%clk 00:09:55][%emt
00:00:04]} 29...Qf6 {[%clk 00:08:58][%emt 00:05:36]} 30.h4 {[%clk 00:09:49][%emt
00:00:37]} 30...Nf8 {[%clk 00:09:17][%emt 00:00:11]} 31.Ng5 {[%clk 00:05:48]
[%emt 00:04:30]} 31...Qa1+ {[%clk 00:05:16] [%emt 00:04:31]} 32.Kh2 {[%clk
00:06:13] [%emt 00:00:05]} 32...Qf6 {[%clk 00:05:42] [%emt 00:00:04]} 33.Kg1 
{[%clk 00:05:48][%emt 00:04:30]} 33...Qa1+ {[%clk 00:06:08][%emt 00:00:05]} 
34.Kh2 {[%clk 00:06:52][%emt 00:00:03]} 34...Qf6 {[%clk 00:06:33][%emt
00:00:05]} 35.f4 {[%clk 00:05:09][%emt 00:02:13]} 35...b6 {[%clk 00:04:42][%emt
00:02:20]} 36.g3 {[%clk 00:03:38][%emt 00:02:01]} 36...a5 {[%clk 00:03:32][%emt
00:01:41]} 37.a4 {[%clk 00:02:11] [%emt 00:01:57]} 37...Qf5 {[%clk 00:01:52]
[%emt 00:02:10]} 38.Kg1 {[%clk 00:02:24] [%emt 00:00:17]} 38...Qf6 {[%clk
00:01:14] [%emt 00:01:07]} 39.Kh2 {[%clk 00:02:11][%emt 00:01:57]} 39...Qf5 
{[%clk 00:01:52][%emt 00:02:10]} 40.Kg1 {[%clk 00:02:24][%emt 00:00:17]} 
40...Qf6 {[%clk 00:01:14][%emt 00:01:07]} 41.Kg2 {[%clk 00:35:14] [%emt
00:18:15]} 41...Nh7 {[%clk 00:30:25] [%emt 00:21:21]} 42.Qc8+ {[%clk
00:29:25][%emt 00:06:20]} 42...Nf8 {[%clk 00:30:43][%emt 00:00:12]} 43.Qc7 
{[%clk 00:35:14][%emt 00:18:15]} 43...Nh7 {[%clk 00:30:25][%emt 00:21:21]} 
44.Qxb6 {[%clk 00:23:50][%emt 00:06:30]} 44...Nxg5 {[%clk 00:30:12][%emt
00:01:25]} 45.hxg5 {[%clk 00:24:08][%emt 00:00:12]} 45...Qf5 {[%clk
00:10:05][%emt 00:20:37]} 46.Qxc5 {[%clk 00:24:21][%emt 00:00:17]} 46...Qe4+ 
{[%clk 00:10:01][%emt 00:00:34]} 47.Kf2 {[%clk 00:16:30][%emt 00:08:21]} 
47...d4 {[%clk 00:09:27][%emt 00:01:04]} 48.Qc4 {[%clk 00:12:37][%emt 00:04:24]} 
48...Qe3+ {[%clk 00:09:24][%emt 00:00:32]} 49.Kg2 {[%clk 00:13:00][%emt
00:00:06]} 49...Qd2+ {[%clk 00:08:30] [%emt 00:01:25]} 50.Kf1 {[%clk
00:11:24][%emt 00:02:05]} 50...Qc1+ {[%clk 00:08:28][%emt 00:00:33]} 51.Kg2 
{[%clk 00:11:16][%emt 00:00:38]} 51...Qd2+ {[%clk 00:08:30][%emt 00:01:25]} 
52.Kf3 {[%clk 00:03:26][%emt 00:08:20]} 52...Qe3+ {[%clk 00:08:57][%emt
00:00:28]} 53.Kg4 {[%clk 00:03:20][%emt 00:00:36]} 53...Qe4 {[%clk
00:03:30][%emt 00:05:57]} 54.c3 {[%clk 00:02:31][%emt 00:01:19]} 54...Qh1 
{[%clk 00:02:36][%emt 00:01:23]} 55.Qxe6+ {[%clk 00:02:58][%emt 00:00:03]} 
55...Kh8 {[%clk 00:02:45][%emt 00:00:22]} 56.f5 {[%clk 00:02:07][%emt 00:01:21]} 
56...gxf5+ {[%clk 00:02:39][%emt 00:00:35]} 57.Qxf5 {[%clk 00:01:27][%emt
00:01:11]} 57...dxc3 {[%clk 00:01:30] [%emt 00:01:39]} 58.Qc8+ {[%clk
00:01:01][%emt 00:00:56]} 58...Kh7 {[%clk 00:01:55][%emt 00:00:04]} 59.Qf5+ 
{[%clk 00:01:25][%emt 00:00:07]} 59...Kh8 {[%clk 00:01:30][%emt 00:01:39]} 
60.Qc2 {[%clk 00:00:39][%emt 00:01:15]} 60...Qd5 {[%clk 00:01:02][%emt
00:01:23]} 61.g6 {[%clk 00:14:35][%emt 00:01:35]} 61...Qd2 {[%clk 00:08:03][%emt
00:08:29]} 62.Qe4 {[%clk 00:13:22][%emt 00:01:43]} 62...Qd1+ {[%clk
00:07:27][%emt 00:01:06]} 63.Kh4 {[%clk 00:06:36][%emt 00:07:16]} 63...Qd8+ 
{[%clk 00:07:21][%emt 00:00:35]} 64.Kh3 {[%clk 00:06:54][%emt 00:00:13]} 
64...Qd7+ {[%clk 00:05:29][%emt 00:02:22]} 65.g4 {[%clk 00:06:34][%emt
00:00:50]} 65...Qd8 {[%clk 00:02:40][%emt 00:03:19]} 66.Qc4 {[%clk
00:03:24][%emt 00:03:40]} 66...Qe8 {[%clk 00:00:54][%emt 00:02:15]} 67.Qxc3 
{[%clk 00:03:45][%emt 00:00:10]} 67...Qb8 {[%clk 00:00:32][%emt 00:00:53]} 
68.Qg3 {[%clk 00:03:00][%emt 00:01:13]} 68...Qxb3 {[%clk 00:00:55][%emt
00:00:07]} 69.Kh4 {[%clk 00:01:48][%emt 00:01:42]} 69...Qb6 {[%clk
00:00:43][%emt 00:00:43]} 70.Qd3 {[%clk 00:01:35][%emt 00:00:42]} 70...Qf2+ 
{[%clk 00:00:40][%emt 00:00:33]} 71.Kh3 {[%clk 00:01:45][%emt 00:00:20]} 
71...Qb6 {[%clk 00:00:41][%emt 00:00:30]} 72.Qe4 {[%clk 00:01:34][%emt
00:00:41]} 72...Qb3+ {[%clk 00:00:56][%emt 00:00:16]} 73.Kh4 {[%clk
00:01:57][%emt 00:00:06]} 73...Qb8 {[%clk 00:01:09][%emt 00:00:16]} 74.Qh1 
{[%clk 00:01:39][%emt 00:00:48]} 74...Qe8 {[%clk 00:00:31][%emt 00:01:08]} 
75.Kg5+ {[%clk 00:01:22][%emt 00:00:47]} 75...Kg8 {[%clk 00:00:57][%emt
00:00:05]} 76.Qh7+ {[%clk 00:01:46][%emt 00:00:05]} 76...Kf8 {[%clk
00:01:23][%emt 00:00:03]} 77.Qh8+ {[%clk 00:02:12][%emt 00:00:06]} 77...Ke7 
{[%clk 00:01:49][%emt 00:00:04]} 78.Qxe8+ {[%clk 00:00:53][%emt 00:01:48]} 
78...Kxe8 {[%clk 00:02:13][%emt 00:00:06]} 79.Kf5 {[%clk 00:01:21][%emt
00:00:02]} 79...Kd7 {[%clk 00:01:18][%emt 00:01:25]} 80.Ke5 {[%clk
00:01:46][%emt 00:00:05]} 80...Ke7 {[%clk 00:01:45][%emt 00:00:04]} 81.g5 
{[%clk 00:02:02][%emt 00:00:14]} 81...Kd7 {[%clk 00:02:09][%emt 00:00:06]} 
82.Kd5 {[%clk 00:02:26][%emt 00:00:06]} 82...Ke7 {[%clk 00:02:32][%emt
00:00:08]} 83.Kc5 {[%clk 00:02:42][%emt 00:00:13]} 83...Ke6 {[%clk
00:02:58][%emt 00:00:03]} 84.Kb5 {[%clk 00:03:09][%emt 00:00:04]} 84...Kf5 
{[%clk 00:03:24][%emt 00:00:04]} 85.Kxa5 {[%clk 00:03:34][%emt 00:00:04]} 1-0

[Event "FIDE Grand Swiss 2023"]
[Site "Villa Marina, Douglas, Isle of Man"]
[Date "2023.11.01"]
[Round "7.34"]
[White "Ponomariov, Ruslan"]
[Black "Jumabayev, Rinat"]
[Result "0-1"]
[WhiteElo "2641"]
[BlackElo "2585"]
[EventDate "2023.10.25"]
[ECO "A05"]
[PlyCount "62"]
[BlackFideId "13702661"]
[TimeControl "40/100 + 20/50 + 15 + 30s/move"]
[WhiteFideId "14103320"]

1.c4 {[%clk 01:40:56][%emt 00:00:04]} 1...c5 {[%clk 01:40:49][%emt 00:00:11]} 
2.Nf3 {[%clk 01:41:00][%emt 00:00:26]} 2...Nc6 {[%clk 01:40:10][%emt 00:01:10]} 
3.g3 {[%clk 01:41:12][%emt 00:00:17]} 3...Nf6 {[%clk 01:40:10][%emt 00:00:30]} 
4.Bg2 {[%clk 01:41:16][%emt 00:00:26]} 4...d5 {[%clk 01:40:32][%emt 00:00:09]} 
5.cxd5 {[%clk 01:41:22][%emt 00:00:23]} 5...Nxd5 {[%clk 01:40:59][%emt
00:00:04]} 6.d4 {[%clk 01:41:33][%emt 00:00:18]} 6...Nf6 {[%clk 01:27:36][%emt
00:13:54]} 7.O-O {[%clk 01:13:13][%emt 00:28:50]} 7...cxd4 {[%clk 01:23:03][%emt
00:05:04]} 8.Bf4 {[%clk 01:12:46][%emt 00:00:56]} 8...Ng4 {[%clk 00:39:25][%emt
00:44:07]} 9.Qa4 {[%clk 01:07:59][%emt 00:05:17]} 9...Qd7 {[%clk 00:39:16][%emt
00:00:39]} 10.h3 {[%clk 01:04:16][%emt 00:04:14]} 10...e5 {[%clk 00:38:49][%emt
00:00:56]} 11.Bg5 {[%clk 00:39:23][%emt 00:25:24]} 11...h6 {[%clk 00:35:41][%emt
00:03:37]} 12.hxg4 {[%clk 00:39:26][%emt 00:00:27]} 12...hxg5 {[%clk
00:36:07][%emt 00:00:05]} 13.Rc1 {[%clk 00:39:52][%emt 00:00:04]} 13...Be7 
{[%clk 00:29:05][%emt 00:07:31]} 14.Nbd2 {[%clk 00:38:51][%emt 00:01:31]} 
14...O-O {[%clk 00:26:15][%emt 00:03:21]} 15.Nh2 {[%clk 00:31:36][%emt
00:07:43]} 15...Qe6 {[%clk 00:21:40][%emt 00:05:06]} 16.Qb5 {[%clk
00:30:14][%emt 00:01:53]} 16...Rd8 {[%clk 00:19:48][%emt 00:02:22]} 17.Be4 
{[%clk 00:30:18][%emt 00:00:26]} 17...g6 {[%clk 00:19:02][%emt 00:01:16]} 
18.Ndf3 {[%clk 00:23:17][%emt 00:07:31]} 18...a6 {[%clk 00:17:57][%emt
00:01:35]} 19.Qb6 {[%clk 00:23:05][%emt 00:00:42]} 19...Rd6 {[%clk
00:16:32][%emt 00:01:54]} 20.Qc5 {[%clk 00:22:20][%emt 00:01:16]} 20...Bd7 
{[%clk 00:15:35][%emt 00:01:27]} 21.Bxc6 {[%clk 00:14:49][%emt 00:08:01]} 
21...Bxc6 {[%clk 00:15:37][%emt 00:00:28]} 22.Qxe5 {[%clk 00:15:15][%emt
00:00:04]} 22...Bf6 {[%clk 00:13:22][%emt 00:02:44]} 23.Qc5 {[%clk
00:11:45][%emt 00:04:01]} 23...d3 {[%clk 00:07:59][%emt 00:05:53]} 24.exd3 
{[%clk 00:11:49][%emt 00:00:25]} 24...Bxb2 {[%clk 00:08:00][%emt 00:00:29]} 
25.Re1 {[%clk 00:11:52][%emt 00:00:27]} 25...Qd5 {[%clk 00:03:25][%emt
00:05:05]} 26.Qxd5 {[%clk 00:12:08][%emt 00:00:14]} 26...Rxd5 {[%clk
00:03:47][%emt 00:00:08]} 27.Rab1 {[%clk 00:12:19][%emt 00:00:20]} 27...Bf6 
{[%clk 00:04:08][%emt 00:00:08]} 28.Nf1 {[%clk 00:09:48][%emt 00:03:01]} 
28...Rad8 {[%clk 00:04:18][%emt 00:00:20]} 29.d4 {[%clk 00:04:17][%emt
00:06:02]} 29...Bxd4 {[%clk 00:04:31][%emt 00:00:17]} 30.Ne3 {[%clk
00:04:21][%emt 00:00:26]} 30...Bxe3 {[%clk 00:03:38][%emt 00:01:23]} 31.fxe3 
{[%clk 00:04:47][%emt 00:00:03]} 31...Ra5 {[%clk 00:02:43][%emt 00:01:25]} 0-1

[Event "FIDE Grand Swiss 2023"]
[Site "Villa Marina, Douglas, Isle of Man"]
[Date "2023.11.01"]
[Round "7.35"]
[White "Petrosyan, Manuel"]
[Black "Sadhwani, Raunak"]
[Result "1-0"]
[WhiteElo "2604"]
[BlackElo "2641"]
[EventDate "2023.10.25"]
[ECO "C80"]
[PlyCount "131"]
[BlackFideId "35093487"]
[TimeControl "40/100 + 20/50 + 15 + 30s/move"]
[WhiteFideId "13300857"]

1.e4 {[%clk 01:38:36][%emt 00:02:22]} 1...e5 {[%clk 01:40:58][%emt 00:00:05]} 
2.Nf3 {[%clk 01:38:55][%emt 00:00:10]} 2...Nc6 {[%clk 01:41:24][%emt 00:00:04]} 
3.Bb5 {[%clk 01:39:13][%emt 00:00:12]} 3...a6 {[%clk 01:41:50][%emt 00:00:05]} 
4.Ba4 {[%clk 01:39:31][%emt 00:00:12]} 4...Nf6 {[%clk 01:42:15][%emt 00:00:05]} 
5.O-O {[%clk 01:39:41][%emt 00:00:19]} 5...Nxe4 {[%clk 01:42:35][%emt 00:00:11]} 
6.d4 {[%clk 01:31:13][%emt 00:08:58]} 6...b5 {[%clk 01:41:50][%emt 00:01:15]} 
7.Bb3 {[%clk 01:29:43][%emt 00:02:00]} 7...d5 {[%clk 01:42:14][%emt 00:00:05]} 
8.dxe5 {[%clk 01:30:08][%emt 00:00:05]} 8...Be6 {[%clk 01:42:40][%emt 00:00:04]} 
9.Be3 {[%clk 01:29:54][%emt 00:00:44]} 9...Be7 {[%clk 01:40:40][%emt 00:02:31]} 
10.c3 {[%clk 01:22:03][%emt 00:08:20]} 10...O-O {[%clk 01:40:32][%emt 00:00:39]} 
11.Nbd2 {[%clk 01:22:29][%emt 00:00:04]} 11...Bg4 {[%clk 01:40:49][%emt
00:00:13]} 12.Nxe4 {[%clk 01:21:46][%emt 00:01:13]} 12...dxe4 {[%clk
01:41:00][%emt 00:00:18]} 13.Bd5 {[%clk 01:21:46][%emt 00:00:30]} 13...exf3 
{[%clk 01:33:43][%emt 00:07:47]} 14.Bxc6 {[%clk 01:22:08][%emt 00:00:09]} 
14...fxg2 {[%clk 01:34:06][%emt 00:00:06]} 15.Qxg4 {[%clk 01:22:26][%emt
00:00:12]} 15...gxf1=Q+ {[%clk 01:34:19][%emt 00:00:17]} 16.Rxf1 {[%clk
01:21:28][%emt 00:01:28]} 16...Qc8 {[%clk 01:31:25][%emt 00:03:24]} 17.Bd7 
{[%clk 01:09:17][%emt 00:12:42]} 17...h5 {[%clk 01:24:03][%emt 00:07:51]} 
18.Qf5 {[%clk 01:02:37][%emt 00:07:11]} 18...g6 {[%clk 01:20:26][%emt 00:04:07]} 
19.Bxc8 {[%clk 01:00:52][%emt 00:02:15]} 19...gxf5 {[%clk 01:20:51][%emt
00:00:05]} 20.Bxf5 {[%clk 01:01:18][%emt 00:00:04]} 20...Rad8 {[%clk
01:20:15][%emt 00:01:05]} 21.f4 {[%clk 00:55:25][%emt 00:06:22]} 21...Kh8 
{[%clk 01:19:58][%emt 00:00:48]} 22.Kf2 {[%clk 00:50:45][%emt 00:05:10]} 
22...a5 {[%clk 01:18:32][%emt 00:01:56]} 23.Kf3 {[%clk 00:49:37][%emt 00:01:38]} 
23...c5 {[%clk 01:13:24][%emt 00:05:39]} 24.Be4 {[%clk 00:45:29][%emt 00:04:37]} 
24...f6 {[%clk 01:06:37][%emt 00:07:18]} 25.e6 {[%clk 00:44:05][%emt 00:01:54]} 
25...f5 {[%clk 01:07:01][%emt 00:00:06]} 26.Bc6 {[%clk 00:44:13][%emt 00:00:22]} 
26...Rb8 {[%clk 01:01:47][%emt 00:05:43]} 27.Rd1 {[%clk 00:29:29][%emt
00:15:15]} 27...Rb6 {[%clk 00:56:31][%emt 00:05:46]} 28.Bd7 {[%clk
00:29:31][%emt 00:00:28]} 28...Rd6 {[%clk 00:56:47][%emt 00:00:14]} 29.Re1 
{[%clk 00:13:47][%emt 00:16:14]} 29...Kg7 {[%clk 00:56:19][%emt 00:00:57]} 
30.Bxb5 {[%clk 00:11:35][%emt 00:02:42]} 30...Rb6 {[%clk 00:45:43][%emt
00:11:06]} 31.a4 {[%clk 00:11:59][%emt 00:00:06]} 31...Kh6 {[%clk 00:23:03][%emt
00:23:11]} 32.b4 {[%clk 00:09:24][%emt 00:03:04]} 32...Rxe6 {[%clk
00:19:16][%emt 00:04:17]} 33.bxa5 {[%clk 00:07:06][%emt 00:02:48]} 33...Ra8 
{[%clk 00:19:09][%emt 00:00:37]} 34.a6 {[%clk 00:04:55][%emt 00:02:41]} 
34...Bf6 {[%clk 00:19:38][%emt 00:00:01]} 35.Rd1 {[%clk 00:01:38][%emt
00:03:47]} 35...Rexa6 {[%clk 00:18:26][%emt 00:01:43]} 36.Bxa6 {[%clk
00:02:04][%emt 00:00:04]} 36...Rxa6 {[%clk 00:18:53][%emt 00:00:02]} 37.Bxc5 
{[%clk 00:02:25][%emt 00:00:10]} 37...Rxa4 {[%clk 00:18:40][%emt 00:00:43]} 
38.Bd4 {[%clk 00:01:45][%emt 00:01:10]} 38...Kg6 {[%clk 00:10:48][%emt
00:08:22]} 39.Ke3 {[%clk 00:02:11][%emt 00:00:03]} 39...h4 {[%clk 00:08:22][%emt
00:02:56]} 40.Rd2 {[%clk 00:01:06][%emt 00:01:35]} 40...Kf7 {[%clk
00:07:38][%emt 00:01:14]} 41.h3 {[%clk 00:38:37][%emt 00:12:59]} 41...Ke6 
{[%clk 00:52:49][%emt 00:05:19]} 42.Bxf6 {[%clk 00:29:22][%emt 00:09:45]} 
42...Re4+ {[%clk 00:51:46][%emt 00:01:34]} 43.Kd3 {[%clk 00:27:15][%emt
00:02:36]} 43...Kxf6 {[%clk 00:52:11][%emt 00:00:05]} 44.Rf2 {[%clk
00:27:34][%emt 00:00:10]} 44...Ra4 {[%clk 00:49:25][%emt 00:03:17]} 45.Rf3 
{[%clk 00:27:20][%emt 00:00:44]} 45...Kf7 {[%clk 00:47:48][%emt 00:02:07]} 
46.Kc2 {[%clk 00:20:22][%emt 00:07:28]} 46...Ke6 {[%clk 00:47:03][%emt
00:01:15]} 47.Kb3 {[%clk 00:19:32][%emt 00:01:20]} 47...Ra1 {[%clk
00:34:36][%emt 00:12:57]} 48.Kc4 {[%clk 00:15:55][%emt 00:04:08]} 48...Kd6 
{[%clk 00:33:37][%emt 00:01:29]} 49.Rd3+ {[%clk 00:14:23][%emt 00:02:01]} 
49...Kc6 {[%clk 00:33:44][%emt 00:00:23]} 50.Kd4 {[%clk 00:14:23][%emt
00:00:30]} 50...Kd6 {[%clk 00:34:06][%emt 00:00:08]} 51.c4 {[%clk 00:14:08][%emt
00:00:45]} 51...Re1 {[%clk 00:33:59] [%emt 00:00:37]} 52.Re3 {[%clk
00:06:43][%emt 00:07:55]} 52...Rd1+ {[%clk 00:34:20][%emt 00:00:09]} 53.Rd3 
{[%clk 00:06:37][%emt 00:00:36]} 53...Re1 {[%clk 00:33:59][%emt 00:00:37]} 
54.Kc3+ {[%clk 00:05:09][%emt 00:01:59]} 54...Kc6 {[%clk 00:34:30][%emt
00:00:40]} 55.Rd5 {[%clk 00:04:38][%emt 00:01:00]} 55...Re3+ {[%clk
00:34:43][%emt 00:00:16]} 56.Kb4 {[%clk 00:04:39][%emt 00:00:30]} 56...Rxh3 
{[%clk 00:35:02][%emt 00:00:11]} 57.Rxf5 {[%clk 00:05:04][%emt 00:00:04]} 
57...Rh1 {[%clk 00:33:29][%emt 00:02:03]} 58.Rf6+ {[%clk 00:05:29][%emt
00:00:05]} 58...Kd7 {[%clk 00:33:35][%emt 00:00:25]} 59.Rh6 {[%clk
00:05:25][%emt 00:00:34]} 59...h3 {[%clk 00:33:46][%emt 00:00:19]} 60.Kc5 
{[%clk 00:05:23][%emt 00:00:32]} 60...Ke7 {[%clk 00:33:24][%emt 00:00:52]} 
61.Kc6 {[%clk 00:04:58][%emt 00:00:55]} 61...h2 {[%clk 00:33:27][%emt 00:00:27]} 
62.c5 {[%clk 00:05:15][%emt 00:00:13]} 62...Kf7 {[%clk 00:29:55][%emt 00:04:02]} 
63.f5 {[%clk 00:04:53][%emt 00:00:52]} 63...Kg7 {[%clk 00:27:39][%emt 00:02:46]} 
64.Rg6+ {[%clk 00:04:57][%emt 00:00:26]} 64...Kf7 {[%clk 00:28:05][%emt
00:00:05]} 65.Rg2 {[%clk 00:04:47][%emt 00:00:39]} 65...Ke7 {[%clk
00:27:17][%emt 00:01:19]} 66.Rd2 {[%clk 00:04:09][%emt 00:01:08]} 1-0